[Event "Titled Tuesday Blitz March 14 Early 2023"]
[White "Buscar, Michael"]
[Black "Wartiovaara, Oliver"]
[WhiteFideId "2603616"]
[BlackFideId "513024"]
[WhiteElo "2010"]
[BlackElo "2214"]
[Result "1-0"]
[Round "06"]
[TimeControl "180+2"]
[Date "2023.03.14"]
[WhiteClock "0:00:18"]
[BlackClock "0:00:22"]

1. d4 {[%clk 0:02:52]}  d5 {[%clk 0:02:51]} 2. c4 {[%clk 0:02:50]}  e6 {[%clk 0:02:50]} 3. Nc3 {[%clk 0:02:50]}  c6 {[%clk 0:02:49]} 4. Nf3 {[%clk 0:02:49]}  dxc4 {[%clk 0:02:48]} 5. a4 {[%clk 0:02:49]}  Bb4 {[%clk 0:02:47]} 6. e3 {[%clk 0:02:42]}  b5 {[%clk 0:02:46]} 7. Ne5 {[%clk 0:02:41]}  Qb6 {[%clk 0:01:54]} 8. Qf3 {[%clk 0:02:29]}  Qb7 {[%clk 0:01:50]} 9. Bd2 {[%clk 0:02:23]}  Bxc3 {[%clk 0:01:45]} 10. Bxc3 {[%clk 0:02:15]}  Nf6 {[%clk 0:01:44]} 11. Bb4 {[%clk 0:02:10]}  Nd5 {[%clk 0:01:40]} 12. Bc5 {[%clk 0:02:01]}  f6 {[%clk 0:01:35]} 13. Qh5+ {[%clk 0:01:54]}  g6 {[%clk 0:01:30]} 14. Nxg6 {[%clk 0:01:43]}  Qf7 {[%clk 0:01:30]} 15. Nf4 {[%clk 0:01:44]}  Nxf4 {[%clk 0:01:29]} 16. Qxf7+ {[%clk 0:01:44]}  Kxf7 {[%clk 0:01:30]} 17. exf4 {[%clk 0:01:44]}  Nd7 {[%clk 0:01:18]} 18. Bd6 {[%clk 0:01:36]}  Bb7 {[%clk 0:01:13]} 19. Be2 {[%clk 0:01:33]}  a6 {[%clk 0:01:09]} 20. Ra3 {[%clk 0:01:27]}  Nb6 {[%clk 0:01:07]} 21. Bh5+ {[%clk 0:01:23]}  Kg7 {[%clk 0:00:58]} 22. Rg3+ {[%clk 0:00:53]}  Kh6 {[%clk 0:00:56]} 23. Bf3 {[%clk 0:00:52]}  Rhg8 {[%clk 0:00:40]} 24. f5 {[%clk 0:00:46]}  e5 {[%clk 0:00:26]} 25. dxe5 {[%clk 0:00:43]}  fxe5 {[%clk 0:00:24]} 26. Bxe5 {[%clk 0:00:31]}  Rge8 {[%clk 0:00:23]} 27. O-O {[%clk 0:00:24]}  Rxe5 {[%clk 0:00:23]} 28. Rd1 {[%clk 0:00:19]}  Nd5 {[%clk 0:00:23]} 29. Rd4 {[%clk 0:00:19]}  Rxf5 {[%clk 0:00:22]} 30. Rh4+ {[%clk 0:00:18]} 1-0


[Site "https://www.chess.com"]

[Event "Titled Tuesday Blitz March 14 Early 2023"]
[White "Kozin, Yuri"]
[Black "Sovetbekova, Nurai"]
[WhiteFideId "4129920"]
[BlackFideId "13801910"]
[WhiteElo "2518"]
[BlackElo "1857"]
[Result "1-0"]
[Round "06"]
[TimeControl "180+2"]
[Date "2023.03.14"]
[WhiteClock "0:00:39"]
[BlackClock "0:00:11"]

1. e4 {[%clk 0:02:54]}  c5 {[%clk 0:02:59]} 2. Nf3 {[%clk 0:02:54]}  d6 {[%clk 0:02:59]} 3. d4 {[%clk 0:02:54]}  cxd4 {[%clk 0:03:00]} 4. Nxd4 {[%clk 0:02:55]}  Nf6 {[%clk 0:03:00]} 5. Nc3 {[%clk 0:02:56]}  a6 {[%clk 0:03:01]} 6. Be3 {[%clk 0:02:56]}  e5 {[%clk 0:03:01]} 7. Nf3 {[%clk 0:02:57]}  Be7 {[%clk 0:02:59]} 8. Bc4 {[%clk 0:02:57]}  b5 {[%clk 0:02:57]} 9. Bd5 {[%clk 0:02:57]}  Nxd5 {[%clk 0:02:55]} 10. Qxd5 {[%clk 0:02:56]}  Nc6 {[%clk 0:02:32]} 11. Qxc6+ {[%clk 0:02:53]}  Bd7 {[%clk 0:02:32]} 12. Qd5 {[%clk 0:02:54]}  O-O {[%clk 0:02:32]} 13. Qd2 {[%clk 0:02:51]}  Rc8 {[%clk 0:02:26]} 14. Nd5 {[%clk 0:02:47]}  f5 {[%clk 0:02:24]} 15. exf5 {[%clk 0:02:42]}  Bxf5 {[%clk 0:02:25]} 16. c3 {[%clk 0:02:41]}  Be4 {[%clk 0:02:18]} 17. O-O-O {[%clk 0:02:35]}  Bf6 {[%clk 0:01:29]} 18. Nxf6+ {[%clk 0:02:33]}  Rxf6 {[%clk 0:01:29]} 19. Nxe5 {[%clk 0:02:26]}  Qa5 {[%clk 0:01:27]} 20. f3 {[%clk 0:02:00]}  Qxa2 {[%clk 0:01:08]} 21. fxe4 {[%clk 0:01:56]}  dxe5 {[%clk 0:00:44]} 22. Qd5+ {[%clk 0:01:53]}  Qxd5 {[%clk 0:00:44]} 23. Rxd5 {[%clk 0:01:54]}  b4 {[%clk 0:00:41]} 24. Rd3 {[%clk 0:01:45]}  Rc4 {[%clk 0:00:39]} 25. Rhd1 {[%clk 0:01:30]}  Rxe4 {[%clk 0:00:36]} 26. Kc2 {[%clk 0:01:27]}  bxc3 {[%clk 0:00:31]} 27. Rxc3 {[%clk 0:01:24]}  Kf7 {[%clk 0:00:28]} 28. Rd7+ {[%clk 0:01:16]}  Kg6 {[%clk 0:00:27]} 29. Kd3 {[%clk 0:01:10]}  Rg4 {[%clk 0:00:25]} 30. g3 {[%clk 0:01:07]}  Rb4 {[%clk 0:00:22]} 31. Kc2 {[%clk 0:00:50]}  Rf3 {[%clk 0:00:12]} 32. Bc5 {[%clk 0:00:41]}  Rf2+ {[%clk 0:00:11]} 33. Bxf2 {[%clk 0:00:39]} 1-0


[Site "https://www.chess.com"]

[Event "Titled Tuesday Blitz March 14 Early 2023"]
[White "Turzo, Attila"]
[Black "Bolanos, Fernando"]
[WhiteFideId "704954"]
[BlackFideId "3304094"]
[WhiteElo "2517"]
[BlackElo "2166"]
[Result "1-0"]
[Round "06"]
[TimeControl "180+2"]
[Date "2023.03.14"]
[WhiteClock "0:00:32"]
[BlackClock "0:00:08"]

1. e4 {[%clk 0:03:00]}  c5 {[%clk 0:02:56]} 2. Nc3 {[%clk 0:03:00]}  Nc6 {[%clk 0:02:53]} 3. f4 {[%clk 0:02:59]}  e6 {[%clk 0:02:52]} 4. Nf3 {[%clk 0:02:59]}  a6 {[%clk 0:02:53]} 5. g3 {[%clk 0:02:55]}  b5 {[%clk 0:02:52]} 6. Bg2 {[%clk 0:02:54]}  Bb7 {[%clk 0:02:53]} 7. O-O {[%clk 0:02:54]}  d6 {[%clk 0:02:52]} 8. d3 {[%clk 0:02:51]}  Nge7 {[%clk 0:02:52]} 9. Ne2 {[%clk 0:02:49]}  g6 {[%clk 0:02:52]} 10. g4 {[%clk 0:02:45]}  h5 {[%clk 0:02:50]} 11. h3 {[%clk 0:02:37]}  Bg7 {[%clk 0:02:51]} 12. Ng3 {[%clk 0:02:37]}  Qb6 {[%clk 0:02:33]} 13. gxh5 {[%clk 0:02:35]}  gxh5 {[%clk 0:02:34]} 14. c3 {[%clk 0:02:25]}  O-O-O {[%clk 0:02:33]} 15. Ng5 {[%clk 0:02:12]}  Rdf8 {[%clk 0:02:29]} 16. f5 {[%clk 0:02:12]}  exf5 {[%clk 0:02:21]} 17. Nxf5 {[%clk 0:02:10]}  Nxf5 {[%clk 0:02:18]} 18. Rxf5 {[%clk 0:02:10]}  Ne5 {[%clk 0:01:53]} 19. Be3 {[%clk 0:01:56]}  Bh6 {[%clk 0:01:44]} 20. Qe2 {[%clk 0:01:48]}  Kb8 {[%clk 0:00:51]} 21. Raf1 {[%clk 0:01:47]}  Bc8 {[%clk 0:00:51]} 22. Rf6 {[%clk 0:01:35]}  Bxg5 {[%clk 0:00:47]} 23. Bxg5 {[%clk 0:01:35]}  Rhg8 {[%clk 0:00:47]} 24. h4 {[%clk 0:01:27]}  Be6 {[%clk 0:00:24]} 25. b3 {[%clk 0:01:21]}  Ng4 {[%clk 0:00:20]} 26. R6f4 {[%clk 0:01:17]}  c4+ {[%clk 0:00:20]} 27. d4 {[%clk 0:01:08]}  cxb3 {[%clk 0:00:20]} 28. axb3 {[%clk 0:01:08]}  Bxb3 {[%clk 0:00:21]} 29. Rb1 {[%clk 0:00:59]}  Bc4 {[%clk 0:00:21]} 30. Qxc4 {[%clk 0:00:58]}  f6 {[%clk 0:00:20]} 31. Qf1 {[%clk 0:00:52]}  Qd8 {[%clk 0:00:15]} 32. e5 {[%clk 0:00:42]}  fxg5 {[%clk 0:00:12]} 33. Rxb5+ {[%clk 0:00:32]}  axb5 {[%clk 0:00:11]} 34. Qxb5+ {[%clk 0:00:33]}  Kc8 {[%clk 0:00:08]} 35. Qb7# {[%clk 0:00:32]} 1-0


[Site "https://www.chess.com"]

[Event "Titled Tuesday Blitz March 14 Early 2023"]
[White "Bruedigam, Martin"]
[Black "Torres Dominguez, David"]
[WhiteFideId "24608033"]
[BlackFideId "2220857"]
[WhiteElo "2331"]
[BlackElo "1999"]
[Result "1-0"]
[Round "06"]
[TimeControl "180+2"]
[Date "2023.03.14"]
[WhiteClock "0:01:09"]
[BlackClock "0:00:16"]

1. d4 {[%clk 0:02:57]}  e5 {[%clk 0:02:32]} 2. dxe5 {[%clk 0:02:55]}  d6 {[%clk 0:02:32]} 3. exd6 {[%clk 0:02:55]}  Bxd6 {[%clk 0:02:33]} 4. Nf3 {[%clk 0:02:52]}  Bg4 {[%clk 0:02:33]} 5. e3 {[%clk 0:02:46]}  Nc6 {[%clk 0:02:33]} 6. Be2 {[%clk 0:02:47]}  Qe7 {[%clk 0:02:33]} 7. Nbd2 {[%clk 0:02:43]}  O-O-O {[%clk 0:02:33]} 8. c3 {[%clk 0:02:44]}  Nf6 {[%clk 0:02:33]} 9. Qc2 {[%clk 0:02:44]}  Ne5 {[%clk 0:02:06]} 10. Nxe5 {[%clk 0:02:23]}  Qxe5 {[%clk 0:01:56]} 11. Bxg4+ {[%clk 0:02:18]}  Nxg4 {[%clk 0:01:56]} 12. Nf3 {[%clk 0:02:18]}  Qe6 {[%clk 0:01:50]} 13. Nd4 {[%clk 0:02:11]}  Qd7 {[%clk 0:01:43]} 14. h3 {[%clk 0:02:05]}  Ne5 {[%clk 0:01:40]} 15. Qf5 {[%clk 0:02:04]}  Qxf5 {[%clk 0:01:38]} 16. Nxf5 {[%clk 0:02:04]}  Nd3+ {[%clk 0:01:38]} 17. Ke2 {[%clk 0:02:04]}  Be5 {[%clk 0:01:33]} 18. Rd1 {[%clk 0:02:03]}  Nxc1+ {[%clk 0:01:25]} 19. Raxc1 {[%clk 0:02:04]}  g6 {[%clk 0:01:23]} 20. Ne7+ {[%clk 0:01:57]}  Kb8 {[%clk 0:01:23]} 21. f4 {[%clk 0:01:55]}  Bg7 {[%clk 0:01:21]} 22. Nd5 {[%clk 0:01:51]}  c6 {[%clk 0:01:20]} 23. Nb4 {[%clk 0:01:50]}  Kc7 {[%clk 0:01:16]} 24. e4 {[%clk 0:01:48]}  Rhe8 {[%clk 0:01:14]} 25. Kf3 {[%clk 0:01:48]}  a5 {[%clk 0:01:12]} 26. Nc2 {[%clk 0:01:48]}  b5 {[%clk 0:01:10]} 27. Ne3 {[%clk 0:01:46]}  a4 {[%clk 0:01:09]} 28. a3 {[%clk 0:01:44]}  h5 {[%clk 0:01:06]} 29. g4 {[%clk 0:01:40]}  hxg4+ {[%clk 0:01:06]} 30. hxg4 {[%clk 0:01:41]}  Rh8 {[%clk 0:01:04]} 31. Rxd8 {[%clk 0:01:39]}  Kxd8 {[%clk 0:01:03]} 32. Kg3 {[%clk 0:01:38]}  Kc7 {[%clk 0:00:56]} 33. Rd1 {[%clk 0:01:34]}  Re8 {[%clk 0:00:54]} 34. Kf3 {[%clk 0:01:23]}  Rh8 {[%clk 0:00:54]} 35. Nf1 {[%clk 0:01:21]}  Rh3+ {[%clk 0:00:52]} 36. Kg2 {[%clk 0:01:21]}  Rh4 {[%clk 0:00:47]} 37. Kg3 {[%clk 0:01:20]}  Rh1 {[%clk 0:00:47]} 38. g5 {[%clk 0:01:18]}  Bf8 {[%clk 0:00:43]} 39. Ne3 {[%clk 0:01:13]}  Rxd1 {[%clk 0:00:43]} 40. Nxd1 {[%clk 0:01:13]}  c5 {[%clk 0:00:42]} 41. Kf3 {[%clk 0:01:10]}  b4 {[%clk 0:00:42]} 42. c4 {[%clk 0:01:11]}  bxa3 {[%clk 0:00:40]} 43. bxa3 {[%clk 0:01:10]}  Kb6 {[%clk 0:00:38]} 44. e5 {[%clk 0:01:10]}  Be7 {[%clk 0:00:33]} 45. Ke4 {[%clk 0:01:10]}  Ka6 {[%clk 0:00:22]} 46. Nc3 {[%clk 0:01:10]}  Ka5 {[%clk 0:00:22]} 47. Kd5 {[%clk 0:01:10]}  Bf8 {[%clk 0:00:16]} 48. Kc6 {[%clk 0:01:09]}  Be7 {[%clk 0:00:16]} 49. Kd7 {[%clk 0:01:09]}  Bf8 {[%clk 0:00:16]} 50. Ke8 {[%clk 0:01:09]} 1-0


[Site "https://www.chess.com"]

[Event "Titled Tuesday Blitz March 14 Early 2023"]
[White "Jovic, Stanoje"]
[Black "Aung Thant Zin"]
[WhiteFideId "905020"]
[BlackFideId "13000063"]
[WhiteElo "2236"]
[BlackElo "2278"]
[Result "1-0"]
[Round "06"]
[TimeControl "180+2"]
[Date "2023.03.14"]
[WhiteClock "0:02:32"]
[BlackClock "0:02:19"]

1. c4 {[%clk 0:03:00]}  e5 {[%clk 0:02:58]} 2. g3 {[%clk 0:03:01]}  Nf6 {[%clk 0:02:58]} 3. Bg2 {[%clk 0:03:01]}  d5 {[%clk 0:02:55]} 4. cxd5 {[%clk 0:03:00]}  Nxd5 {[%clk 0:02:55]} 5. Nf3 {[%clk 0:03:00]}  Nc6 {[%clk 0:02:53]} 6. O-O {[%clk 0:02:59]}  Be7 {[%clk 0:02:49]} 7. d4 {[%clk 0:02:58]}  exd4 {[%clk 0:02:38]} 8. Nxd4 {[%clk 0:02:56]}  Nxd4 {[%clk 0:02:37]} 9. Qxd4 {[%clk 0:02:56]}  Nb6 {[%clk 0:02:36]} 10. Qxg7 {[%clk 0:02:53]}  Bf6 {[%clk 0:02:29]} 11. Qh6 {[%clk 0:02:50]}  Be6 {[%clk 0:02:27]} 12. Bxb7 {[%clk 0:02:47]}  Rb8 {[%clk 0:02:26]} 13. Bc6+ {[%clk 0:02:46]}  Ke7 {[%clk 0:02:26]} 14. b3 {[%clk 0:02:35]}  Bxa1 {[%clk 0:02:19]} 15. Ba3+ {[%clk 0:02:32]} 1-0


[Site "https://www.chess.com"]

[Event "Titled Tuesday Blitz March 14 Early 2023"]
[White "Fathy, Elameir"]
[Black "Chakravarthi Reddy, M"]
[WhiteFideId "10600396"]
[BlackFideId "25009532"]
[WhiteElo "2311"]
[BlackElo "2201"]
[Result "1-0"]
[Round "06"]
[TimeControl "180+2"]
[Date "2023.03.14"]
[WhiteClock "0:01:26"]
[BlackClock "0:01:09"]

1. d4 {[%clk 0:02:41]}  d5 {[%clk 0:02:52]} 2. c4 {[%clk 0:02:41]}  c6 {[%clk 0:02:44]} 3. Nc3 {[%clk 0:02:40]}  Nf6 {[%clk 0:02:40]} 4. e3 {[%clk 0:02:40]}  e6 {[%clk 0:02:38]} 5. Nf3 {[%clk 0:02:40]}  Nbd7 {[%clk 0:02:38]} 6. Be2 {[%clk 0:02:40]}  Bd6 {[%clk 0:02:36]} 7. O-O {[%clk 0:02:40]}  O-O {[%clk 0:02:35]} 8. b3 {[%clk 0:02:41]}  b6 {[%clk 0:02:31]} 9. Bb2 {[%clk 0:02:41]}  Bb7 {[%clk 0:02:31]} 10. Bd3 {[%clk 0:02:41]}  c5 {[%clk 0:02:26]} 11. cxd5 {[%clk 0:02:41]}  Nxd5 {[%clk 0:02:17]} 12. Ne4 {[%clk 0:02:24]}  Be7 {[%clk 0:02:10]} 13. Qe2 {[%clk 0:02:15]}  cxd4 {[%clk 0:02:03]} 14. Nxd4 {[%clk 0:02:10]}  Nc5 {[%clk 0:01:54]} 15. Nxc5 {[%clk 0:02:02]}  Bxc5 {[%clk 0:01:51]} 16. Rfd1 {[%clk 0:02:02]}  Qg5 {[%clk 0:01:44]} 17. Be4 {[%clk 0:01:29]}  Nc3 {[%clk 0:01:12]} 18. Bxc3 {[%clk 0:01:25]}  Bxe4 {[%clk 0:01:09]} 19. f3 {[%clk 0:01:26]} 1-0


[Site "https://www.chess.com"]

[Event "Titled Tuesday Blitz March 14 Early 2023"]
[White "Dzhumagaliev, Yan"]
[Black "Kornyukov, Alexey"]
[WhiteFideId "24100110"]
[BlackFideId "4150457"]
[WhiteElo "2476"]
[BlackElo "2352"]
[Result "1-0"]
[Round "06"]
[TimeControl "180+2"]
[Date "2023.03.14"]
[WhiteClock "0:03:02"]
[BlackClock "0:01:35"]

1. Nf3 {[%clk 0:02:59]}  d5 {[%clk 0:02:57]} 2. h4 {[%clk 0:03:00]}  Nf6 {[%clk 0:02:56]} 3. h5 {[%clk 0:03:01]}  c5 {[%clk 0:02:55]} 4. c3 {[%clk 0:03:01]}  Nc6 {[%clk 0:02:55]} 5. d4 {[%clk 0:03:01]}  cxd4 {[%clk 0:02:54]} 6. cxd4 {[%clk 0:03:02]}  Bg4 {[%clk 0:02:53]} 7. h6 {[%clk 0:03:03]}  g6 {[%clk 0:02:47]} 8. Nc3 {[%clk 0:03:03]}  e6 {[%clk 0:02:44]} 9. Ne5 {[%clk 0:03:03]}  Nxe5 {[%clk 0:02:41]} 10. dxe5 {[%clk 0:03:04]}  Nd7 {[%clk 0:02:34]} 11. Qa4 {[%clk 0:03:04]}  Bf5 {[%clk 0:02:25]} 12. g4 {[%clk 0:03:04]}  Be4 {[%clk 0:02:18]} 13. f3 {[%clk 0:03:04]}  d4 {[%clk 0:01:46]} 14. Nxe4 {[%clk 0:03:03]}  Qc7 {[%clk 0:01:39]} 15. Nf6+ {[%clk 0:03:02]}  Kd8 {[%clk 0:01:35]} 1-0


[Site "https://www.chess.com"]

[Event "Titled Tuesday Blitz March 14 Early 2023"]
[White "Sadubayev, Airat"]
[Black "rikchessmx"]
[WhiteFideId "13713264"]
[WhiteElo "2129"]
[BlackElo "2322"]
[Result "0-1"]
[Round "06"]
[TimeControl "180+2"]
[Date "2023.03.14"]
[WhiteClock "0:00:07"]
[BlackClock "0:01:01"]

1. d4 {[%clk 0:03:00]}  Nf6 {[%clk 0:02:54]} 2. c4 {[%clk 0:03:01]}  e6 {[%clk 0:02:54]} 3. Nf3 {[%clk 0:03:00]}  c5 {[%clk 0:02:53]} 4. d5 {[%clk 0:03:00]}  b5 {[%clk 0:02:53]} 5. e3 {[%clk 0:02:51]}  bxc4 {[%clk 0:02:51]} 6. Bxc4 {[%clk 0:02:52]}  Bb7 {[%clk 0:02:51]} 7. dxe6 {[%clk 0:02:45]}  fxe6 {[%clk 0:02:50]} 8. O-O {[%clk 0:02:42]}  d5 {[%clk 0:02:49]} 9. Bb5+ {[%clk 0:02:41]}  Nbd7 {[%clk 0:02:49]} 10. Ne5 {[%clk 0:02:36]}  Bd6 {[%clk 0:02:47]} 11. Nxd7 {[%clk 0:02:34]}  Nxd7 {[%clk 0:02:47]} 12. Qh5+ {[%clk 0:02:33]}  g6 {[%clk 0:02:46]} 13. Qh6 {[%clk 0:02:22]}  Qf6 {[%clk 0:02:45]} 14. Bd2 {[%clk 0:02:03]}  O-O-O {[%clk 0:02:45]} 15. Bc3 {[%clk 0:01:50]}  e5 {[%clk 0:02:44]} 16. Nd2 {[%clk 0:01:36]}  d4 {[%clk 0:02:43]} 17. Ba5 {[%clk 0:01:31]}  Nb6 {[%clk 0:02:43]} 18. exd4 {[%clk 0:01:23]}  exd4 {[%clk 0:02:41]} 19. Nc4 {[%clk 0:01:13]}  Bc7 {[%clk 0:02:37]} 20. Rae1 {[%clk 0:00:53]}  Bd5 {[%clk 0:02:00]} 21. Nxb6+ {[%clk 0:00:45]}  axb6 {[%clk 0:01:59]} 22. Bd2 {[%clk 0:00:42]}  Rdf8 {[%clk 0:01:51]} 23. Qh3+ {[%clk 0:00:41]}  Kb8 {[%clk 0:01:51]} 24. a4 {[%clk 0:00:34]}  g5 {[%clk 0:01:46]} 25. a5 {[%clk 0:00:30]}  bxa5 {[%clk 0:01:44]} 26. Ra1 {[%clk 0:00:28]}  Qb6 {[%clk 0:01:29]} 27. Qd3 {[%clk 0:00:23]}  Qd6 {[%clk 0:01:24]} 28. g3 {[%clk 0:00:19]}  Bb7 {[%clk 0:01:21]} 29. Bxa5 {[%clk 0:00:15]}  Qd5 {[%clk 0:01:19]} 30. Bxc7+ {[%clk 0:00:13]}  Kxc7 {[%clk 0:01:18]} 31. f3 {[%clk 0:00:14]}  g4 {[%clk 0:01:18]} 32. Rf2 {[%clk 0:00:11]}  Rxf3 {[%clk 0:01:16]} 33. Rxf3 {[%clk 0:00:08]}  Qxf3 {[%clk 0:01:16]} 34. Qxf3 {[%clk 0:00:07]}  gxf3 {[%clk 0:01:16]} 35. Kf2 {[%clk 0:00:07]}  h5 {[%clk 0:01:12]} 36. Re1 {[%clk 0:00:08]}  h4 {[%clk 0:01:11]} 37. Re7+ {[%clk 0:00:06]}  Kb6 {[%clk 0:01:10]} 38. Bc4 {[%clk 0:00:06]}  hxg3+ {[%clk 0:01:09]} 39. Kxg3 {[%clk 0:00:05]}  Rf8 {[%clk 0:01:05]} 40. Re6+ {[%clk 0:00:05]}  Ka5 {[%clk 0:01:05]} 41. Kf2 {[%clk 0:00:05]}  Kb4 {[%clk 0:01:05]} 42. Bd3 {[%clk 0:00:04]}  Bd5 {[%clk 0:01:04]} 43. Re5 {[%clk 0:00:04]}  Rd8 {[%clk 0:01:03]} 44. Re7 {[%clk 0:00:04]}  c4 {[%clk 0:01:03]} 45. Rc7 {[%clk 0:00:03]}  cxd3 {[%clk 0:01:02]} 46. Rc1 {[%clk 0:00:03]}  Kb3 {[%clk 0:01:01]} 47. Rd1 {[%clk 0:00:04]}  Bc4 {[%clk 0:01:01]} 48. Kxf3 {[%clk 0:00:04]}  Kc2 {[%clk 0:01:01]} 49. Re1 {[%clk 0:00:04]}  d2 {[%clk 0:01:02]} 50. Rg1 {[%clk 0:00:03]}  d1=Q+ {[%clk 0:00:58]} 51. Rxd1 {[%clk 0:00:03]}  Kxd1 {[%clk 0:00:59]} 52. h3 {[%clk 0:00:04]}  d3 {[%clk 0:00:59]} 53. h4 {[%clk 0:00:05]}  Kc2 {[%clk 0:00:59]} 54. h5 {[%clk 0:00:06]}  d2 {[%clk 0:00:59]} 55. h6 {[%clk 0:00:07]}  d1=Q+ {[%clk 0:00:59]} 56. Kf4 {[%clk 0:00:07]}  Qh1 {[%clk 0:00:59]} 57. h7 {[%clk 0:00:08]}  Qxh7 {[%clk 0:01:00]} 58. b3 {[%clk 0:00:08]}  Re8 {[%clk 0:00:59]} 59. bxc4 {[%clk 0:00:08]}  Qf7+ {[%clk 0:01:00]} 60. Kg5 {[%clk 0:00:08]}  Rg8+ {[%clk 0:01:00]} 61. Kh6 {[%clk 0:00:07]}  Qg6# {[%clk 0:01:01]} 0-1


[Site "https://www.chess.com"]

[Event "Titled Tuesday Blitz March 14 Early 2023"]
[White "TimGrutter03"]
[Black "Levitan, Caleb Levi"]
[BlackFideId "14332620"]
[WhiteElo "2479"]
[BlackElo "1963"]
[Result "1/2-1/2"]
[Round "06"]
[TimeControl "180+2"]
[Date "2023.03.14"]
[WhiteClock "0:00:07"]
[BlackClock "0:00:13"]

1. Nf3 {[%clk 0:03:00]}  Nf6 {[%clk 0:02:56]} 2. g3 {[%clk 0:03:00]}  b6 {[%clk 0:02:55]} 3. Bg2 {[%clk 0:02:59]}  Bb7 {[%clk 0:02:55]} 4. O-O {[%clk 0:02:58]}  e6 {[%clk 0:02:53]} 5. b3 {[%clk 0:02:56]}  Be7 {[%clk 0:02:53]} 6. Bb2 {[%clk 0:02:56]}  O-O {[%clk 0:02:54]} 7. d4 {[%clk 0:02:51]}  d5 {[%clk 0:02:54]} 8. Ne5 {[%clk 0:02:45]}  c5 {[%clk 0:02:53]} 9. c4 {[%clk 0:02:42]}  Nc6 {[%clk 0:02:48]} 10. cxd5 {[%clk 0:02:35]}  Nxd5 {[%clk 0:02:39]} 11. Nxc6 {[%clk 0:02:27]}  Bxc6 {[%clk 0:02:38]} 12. Nc3 {[%clk 0:02:24]}  Nxc3 {[%clk 0:02:34]} 13. Bxc3 {[%clk 0:02:25]}  Bxg2 {[%clk 0:02:34]} 14. Kxg2 {[%clk 0:02:24]}  Bf6 {[%clk 0:02:32]} 15. e3 {[%clk 0:02:20]}  Qd5+ {[%clk 0:02:30]} 16. Qf3 {[%clk 0:02:18]}  Qxf3+ {[%clk 0:02:26]} 17. Kxf3 {[%clk 0:02:19]}  Rfd8 {[%clk 0:02:24]} 18. Rfd1 {[%clk 0:02:18]}  Rac8 {[%clk 0:02:23]} 19. Rac1 {[%clk 0:02:15]}  cxd4 {[%clk 0:02:22]} 20. Bxd4 {[%clk 0:02:15]}  Bxd4 {[%clk 0:02:08]} 21. Rxd4 {[%clk 0:02:07]}  Kf8 {[%clk 0:01:56]} 22. Rxd8+ {[%clk 0:02:00]}  Rxd8 {[%clk 0:01:56]} 23. Rc7 {[%clk 0:01:56]}  a5 {[%clk 0:01:55]} 24. Rc6 {[%clk 0:01:50]}  Rb8 {[%clk 0:01:54]} 25. Rc7 {[%clk 0:01:38]}  Rd8 {[%clk 0:01:41]} 26. Ke2 {[%clk 0:01:35]}  Rd6 {[%clk 0:01:36]} 27. Rb7 {[%clk 0:01:32]}  g6 {[%clk 0:01:28]} 28. e4 {[%clk 0:01:26]}  e5 {[%clk 0:01:28]} 29. f4 {[%clk 0:01:22]}  exf4 {[%clk 0:01:27]} 30. gxf4 {[%clk 0:01:23]}  Kg7 {[%clk 0:01:27]} 31. e5 {[%clk 0:01:18]}  Re6 {[%clk 0:01:26]} 32. Kf3 {[%clk 0:01:15]}  g5 {[%clk 0:01:24]} 33. Ke4 {[%clk 0:00:56]}  gxf4 {[%clk 0:01:20]} 34. Kxf4 {[%clk 0:00:57]}  Kg6 {[%clk 0:01:19]} 35. Rb8 {[%clk 0:00:36]}  Rc6 {[%clk 0:01:11]} 36. Rg8+ {[%clk 0:00:32]}  Kh6 {[%clk 0:01:11]} 37. Kf5 {[%clk 0:00:20]}  Rc2 {[%clk 0:01:04]} 38. Kf6 {[%clk 0:00:20]}  Rf2+ {[%clk 0:00:58]} 39. Ke7 {[%clk 0:00:21]}  Rf5 {[%clk 0:00:44]} 40. Kd6 {[%clk 0:00:20]}  Rf2 {[%clk 0:00:42]} 41. Ke7 {[%clk 0:00:20]}  Rf5 {[%clk 0:00:41]} 42. Rg2 {[%clk 0:00:17]}  Rxe5+ {[%clk 0:00:38]} 43. Kxf7 {[%clk 0:00:18]}  Re3 {[%clk 0:00:34]} 44. Rc2 {[%clk 0:00:09]}  Rf3+ {[%clk 0:00:31]} 45. Ke6 {[%clk 0:00:08]}  Kg5 {[%clk 0:00:29]} 46. Kd5 {[%clk 0:00:05]}  Kg4 {[%clk 0:00:25]} 47. Rc6 {[%clk 0:00:04]}  Rh3 {[%clk 0:00:23]} 48. Rxb6 {[%clk 0:00:04]}  Rxh2 {[%clk 0:00:23]} 49. a4 {[%clk 0:00:04]}  h5 {[%clk 0:00:15]} 50. Kc4 {[%clk 0:00:04]}  h4 {[%clk 0:00:15]} 51. Rh6 {[%clk 0:00:04]}  h3 {[%clk 0:00:14]} 52. Kb5 {[%clk 0:00:03]}  Rb2 {[%clk 0:00:14]} 53. Kxa5 {[%clk 0:00:04]}  Rxb3 {[%clk 0:00:14]} 54. Ka6 {[%clk 0:00:05]}  Kg3 {[%clk 0:00:14]} 55. a5 {[%clk 0:00:05]}  h2 {[%clk 0:00:14]} 56. Ka7 {[%clk 0:00:05]}  Kg2 {[%clk 0:00:14]} 57. Rxh2+ {[%clk 0:00:05]}  Kxh2 {[%clk 0:00:14]} 58. a6 {[%clk 0:00:06]}  Kg3 {[%clk 0:00:14]} 59. Ka8 {[%clk 0:00:07]}  Kf4 {[%clk 0:00:13]} 60. a7 {[%clk 0:00:07]}  Ra3 {[%clk 0:00:13]} 61. Kb8 {[%clk 0:00:07]}  Rb3+ {[%clk 0:00:13]} 62. Kc7 {[%clk 0:00:06]}  Ra3 {[%clk 0:00:13]} 63. Kb7 {[%clk 0:00:07]}  Ke5 {[%clk 0:00:13]} 64. a8=Q {[%clk 0:00:06]}  Rxa8 {[%clk 0:00:13]} 65. Kxa8 {[%clk 0:00:07]} 1/2-1/2


[Site "https://www.chess.com"]

[Event "Titled Tuesday Blitz March 14 Early 2023"]
[White "Wilson, Elvin"]
[Black "Pandey Srishti"]
[WhiteFideId "2014874"]
[BlackFideId "35093290"]
[WhiteElo "2279"]
[BlackElo "2083"]
[Result "0-1"]
[Round "06"]
[TimeControl "180+2"]
[Date "2023.03.14"]
[WhiteClock "0:00:01"]
[BlackClock "0:00:20"]

1. c4 {[%clk 0:03:00]}  g6 {[%clk 0:02:53]} 2. g3 {[%clk 0:02:59]}  c6 {[%clk 0:02:46]} 3. Bg2 {[%clk 0:02:54]}  d5 {[%clk 0:02:46]} 4. Nf3 {[%clk 0:02:54]}  dxc4 {[%clk 0:02:42]} 5. O-O {[%clk 0:02:51]}  Bg7 {[%clk 0:02:42]} 6. Na3 {[%clk 0:02:45]}  Nf6 {[%clk 0:02:31]} 7. Nxc4 {[%clk 0:02:44]}  O-O {[%clk 0:02:32]} 8. b3 {[%clk 0:02:41]}  b6 {[%clk 0:02:31]} 9. Bb2 {[%clk 0:02:33]}  Bb7 {[%clk 0:02:30]} 10. Nfe5 {[%clk 0:02:18]}  Nfd7 {[%clk 0:02:27]} 11. Qc2 {[%clk 0:02:07]}  b5 {[%clk 0:02:13]} 12. Nxd7 {[%clk 0:02:03]}  Nxd7 {[%clk 0:02:14]} 13. Bxg7 {[%clk 0:01:57]}  Kxg7 {[%clk 0:02:15]} 14. Nb2 {[%clk 0:01:41]}  Rc8 {[%clk 0:02:12]} 15. Nd3 {[%clk 0:01:36]}  Qb6 {[%clk 0:02:10]} 16. b4 {[%clk 0:01:35]}  a5 {[%clk 0:02:00]} 17. bxa5 {[%clk 0:01:12]}  Qxa5 {[%clk 0:01:55]} 18. Nc5 {[%clk 0:01:12]}  Nxc5 {[%clk 0:01:49]} 19. Qxc5 {[%clk 0:01:12]}  Rc7 {[%clk 0:01:42]} 20. a4 {[%clk 0:01:00]}  Rd8 {[%clk 0:01:36]} 21. Rfb1 {[%clk 0:00:56]}  Rxd2 {[%clk 0:01:30]} 22. axb5 {[%clk 0:00:49]}  Ra2 {[%clk 0:00:56]} 23. Qd4+ {[%clk 0:00:13]}  f6 {[%clk 0:00:37]} 24. b6 {[%clk 0:00:10]}  Rc8 {[%clk 0:00:37]} 25. Rxa2 {[%clk 0:00:09]}  Qxa2 {[%clk 0:00:35]} 26. Ra1 {[%clk 0:00:09]}  Qxe2 {[%clk 0:00:20]} 27. Ra7 {[%clk 0:00:08]}  c5 {[%clk 0:00:20]} 28. Qa1 {[%clk 0:00:01]}  Bxg2 {[%clk 0:00:19]} 29. Kxg2 {[%clk 0:00:01]}  Qe4+ {[%clk 0:00:19]} 30. Kg1 {[%clk 0:00:01]}  Rb8 {[%clk 0:00:20]} 0-1


[Site "https://www.chess.com"]